bitfinex/quotes_BTCUSD_20220211
["timestamp","ask_amount","ask_price","bid_price","bid_amount"]
[1644618535746,0.059051,42352.0,42346.0,0.368091]
[1644618535945,0.059051,42352.0,42348.0,0.09289565]
[1644618536544,0.059051,42352.0,42348.0,0.10439436]
[1644618536744,0.059051,42352.0,42348.0,0.059047]
[1644618536946,0.059051,42352.0,42348.0,0.09390841]
[1644618537145,0.05934419,42352.0,42348.0,0.09390841]
[1644618537347,0.05934419,42352.0,42348.0,0.08890841]
[1644618537547,0.05934419,42352.0,42348.0,0.059047]
[1644618537746,0.05934419,42352.0,42348.0,0.10604262]
[1644618537988,0.059051,42352.0,42348.0,0.10604262]
[1644618538183,0.05934419,42352.0,42348.0,0.10604262]
[1644618538583,0.05934419,42352.0,42351.0,0.25]
[1644618539182,0.059051,42352.0,42351.0,0.25]
[1644618539785,0.059051,42352.0,42350.0,0.059051]
[1644618541187,0.059051,42352.0,42342.0,0.04377159]
[1644618541188,0.059051,42352.0,42328.0,0.43084]
[1644618541388,0.059051,42352.0,42341.0,0.527146]
[1644618541589,0.049051,42352.0,42341.0,0.577146]
[1644618541832,0.059053,42347.0,42343.0,0.11810355]
[1644618542032,0.059053,42347.0,42344.0,0.177151]
[1644618542232,0.059053,42347.0,42345.0,0.05]
[1644618542435,0.059053,42347.0,42345.0,0.10905524]
[1644618542634,0.059053,42347.0,42345.0,0.05905524]
[1644618546888,0.05256801,42347.0,42345.0,0.09371258]
[1644618547988,0.05256801,42347.0,42345.0,0.03465734]
[1644618548788,0.05238801,42347.0,42345.0,0.03465734]
[1644618550535,0.05238801,42347.0,42343.0,0.05]
[1644618550734,0.05238801,42347.0,42343.0,0.03577753]
[1644618550936,0.05238801,42347.0,42345.0,0.059057]
[1644618551538,0.05280463,42347.0,42345.0,0.059057]
[1644618552136,0.05280463,42347.0,42343.0,0.059061]
[1644618552338,0.25128178,42347.0,42340.0,0.118119]
[1644618552537,0.25113728,42347.0,42340.0,0.118119]
[1644618552736,0.30113728,42347.0,42340.0,0.118119]
[1644618552993,0.059065,42345.0,42340.0,0.118119]
[1644618553585,0.059065,42345.0,42340.0,0.168119]
[1644618554184,0.19847715,42344.0,42340.0,0.168119]
[1644618554384,0.19847715,42343.0,42340.0,0.118119]
[1644618554586,0.19847715,42341.0,42340.0,0.118119]
[1644618554789,0.05,42341.0,42340.0,0.118119]
[1644618554986,0.24877324,42341.0,42339.0,0.059067]
[1644618555288,0.00027212,42342.0,42339.0,0.059067]
[1644618555486,0.19905476,42343.0,42339.0,0.059067]
[1644618555686,0.118129,42344.0,42339.0,0.059067]
[1644618555687,0.25784664,42342.0,42339.0,0.059067]
[1644618555887,0.059064,42342.0,42339.0,0.059067]
[1644618556487,0.25784664,42342.0,42339.0,0.059067]
[1644618556733,0.05232524,42342.0,42340.0,0.05]
[1644618556934,0.05232524,42342.0,42341.0,0.25]
[1644618557134,0.19947739,42344.0,42341.0,0.25]
[1644618557135,0.25783764,42344.0,42343.0,0.059055]
[1644618557537,0.25826028,42344.0,42343.0,0.059055]
[1644618557735,0.05947764,42344.0,42343.0,0.059055]
[1644618558136,0.05947764,42344.0,42340.0,0.118116]
[1644618558436,0.29749849,42345.0,42341.0,0.059062]
[1644618558437,0.25786472,42342.0,42341.0,0.059062]
[1644618558734,0.25786472,42342.0,42337.0,0.41581952]
[1644618558735,0.30786472,42342.0,42340.0,0.118116]
[1644618559136,0.109058,42342.0,42340.0,0.118116]
[1644618559439,0.109058,42342.0,42341.0,0.05]
[1644618559636,0.30785778,42342.0,42341.0,0.05]
[1644618559841,0.30785778,42342.0,42340.0,0.26251315]
[1644618559842,0.109058,42342.0,42340.0,0.26251315]
[1644618560037,0.109058,42342.0,42340.0,0.22717354]
[1644618560682,0.30785778,42342.0,42340.0,0.22717354]
[1644618560883,0.109058,42342.0,42340.0,0.22717354]
[1644618561493,0.109058,42342.0,42341.0,0.05]
[1644618563084,0.109058,42342.0,42340.0,0.27717354]
[1644618563485,0.059058,42342.0,42340.0,0.27717354]
[1644618563685,0.25785778,42342.0,42340.0,0.27717354]
[1644618564535,0.25785778,42342.0,42340.0,0.22717354]
[1644618564735,0.30785778,42342.0,42340.0,0.22717354]
[1644618564936,0.19879978,42341.0,42340.0,0.22717354]
[1644618566342,0.30785778,42342.0,42340.0,0.22217354]
[1644618566544,0.109058,42342.0,42340.0,0.22217354]
[1644618566745,0.109058,42342.0,42340.0,0.26310289]
[1644618567144,0.10197636,42342.0,42340.0,0.26310289]
[1644618568187,0.30077614,42342.0,42340.0,0.26310289]
[1644618568387,0.10197636,42342.0,42340.0,0.26310289]
[1644618569188,0.05197636,42342.0,42340.0,0.26310289]
[1644618569991,0.05197636,42342.0,42340.0,0.29784934]
[1644618570391,0.05197636,42342.0,42340.0,0.25691999]
[1644618570590,0.05197636,42342.0,42340.0,0.15286245]
[1644618570792,0.25077614,42342.0,42340.0,0.15286245]
[1644618571191,0.25077614,42342.0,42335.0,0.10300245]
[1644618571393,0.25077614,42342.0,42338.0,0.04487981]
[1644618571594,0.25077614,42342.0,42337.0,0.16811446]
[1644618571841,0.25077614,42342.0,42338.0,0.04617966]
[1644618572045,0.25077614,42342.0,42340.0,0.118116]
[1644618572243,0.25077614,42342.0,42340.0,0.168116]
[1644618573444,0.25077614,42342.0,42340.0,0.118116]
[1644618574744,0.25077614,42342.0,42340.0,0.168116]
[1644618575589,0.05197636,42342.0,42340.0,0.118116]
[1644618576789,0.05197636,42342.0,42340.0,0.168116]
[1644618578191,0.04722244,42342.0,42340.0,0.168116]
[1644618578392,0.24602222,42342.0,42340.0,0.118116]
[1644618578592,0.04722244,42342.0,42340.0,0.168116]
[1644618580331,0.04722244,42342.0,42340.0,0.118116]
[1644618580938,0.04722244,42342.0,42338.0,0.059067]
[1644618581535,0.24602222,42342.0,42338.0,0.059067]
[1644618583582,0.24602222,42342.0,42338.0,0.109067]
[1644618583881,0.24602222,42342.0,42338.0,0.05]
[1644618584082,0.24602222,42342.0,42339.0,0.059064]
[1644618585086,0.04722244,42342.0,42339.0,0.059064]
[1644618585483,0.04722244,42342.0,42341.0,0.05]
[1644618585683,0.31691578,42343.0,42341.0,0.05]
[1644618585885,0.31691578,42343.0,42341.0,0.109062]
[1644618586733,0.31691578,42343.0,42335.0,0.159063]
[1644618586935,0.31691578,42343.0,42340.0,0.059064]
[1644618587936,0.31191578,42343.0,42340.0,0.059064]
[1644618588638,0.19879978,42342.0,42340.0,0.059064]
[1644618588838,0.19204245,42342.0,42340.0,0.059064]
[1644618589438,0.19204245,42342.0,42338.0,0.059067]
[1644618589640,0.059069,42341.0,42338.0,0.059067]
[1644618589940,0.059069,42341.0,42335.0,0.00042355]
[1644618590138,0.059069,42341.0,42335.0,0.05042355]
[1644618590341,0.059069,42341.0,42335.0,0.00042355]
[1644618590782,0.059073,42340.0,42335.0,0.00042355]
[1644618590981,0.059072,42339.0,42334.0,0.5362322]
[1644618591181,0.059072,42339.0,42335.0,0.00042355]
[1644618591581,0.009072,42339.0,42335.0,0.05949555]
[1644618592282,0.009072,42339.0,42335.0,0.00042355]
[1644618592983,0.06814711,42339.0,42335.0,0.00042355]
[1644618593182,0.059076,42338.0,42335.0,0.00042355]
[1644618593381,0.059076,42338.0,42334.0,0.4862322]
[1644618593581,0.059076,42338.0,42335.0,0.00042355]
[1644618593781,0.059076,42338.0,42335.0,0.05949655]
[1644618594231,0.059076,42338.0,42335.0,0.00042355]
[1644618594431,0.118157,42337.0,42334.0,0.4862322]
[1644618594630,0.118157,42337.0,42334.0,0.48661741]
[1644618595633,0.118157,42337.0,42334.0,0.4862322]
[1644618596032,0.17723546,42337.0,42334.0,0.4862322]
[1644618597634,0.42473395,42337.0,42334.0,0.4862322]
[1644618597833,0.05908,42336.0,42334.0,0.4862322]
[1644618598084,0.05907958,42335.0,42334.0,0.4862322]
[1644618598682,0.05253416,42335.0,42334.0,0.4862322]
[1644618598882,0.25129767,42335.0,42334.0,0.4862322]
[1644618599283,0.24129767,42335.0,42334.0,0.4862322]
[1644618599483,0.19876351,42335.0,42334.0,0.4862322]
[1644618600788,0.11815806,42336.0,42334.0,0.4812322]
[1644618600985,0.19876201,42335.0,42334.0,0.4812322]
[1644618602035,0.11768661,42336.0,42334.0,0.4812322]
[1644618602235,0.21768661,42336.0,42334.0,0.4812322]
[1644618602537,0.330966,42335.0,42334.0,0.4812322]
[1644618602735,0.4651851,42336.0,42334.0,0.4812322]
[1644618603235,0.3651851,42336.0,42334.0,0.4812322]
[1644618603439,0.11768661,42336.0,42334.0,0.4812322]
[1644618603836,0.19875586,42335.0,42334.0,0.4812322]
[1644618604037,0.11768661,42336.0,42334.0,0.4812322]
[1644618604539,0.19876312,42335.0,42334.0,0.4812322]
[1644618605339,0.059086,42335.0,42334.0,0.4812322]
[1644618606187,0.390052,42335.0,42334.0,0.4812322]
[1644618606388,0.159086,42335.0,42334.0,0.4812322]
[1644618606590,0.83339464,42335.0,42334.0,0.4812322]
[1644618606790,0.88339464,42335.0,42334.0,0.4221352]
[1644618606991,1.18153931,42335.0,42334.0,0.4221352]
[1644618607190,0.88339464,42335.0,42334.0,0.0675222]
[1644618607390,0.67063364,42335.0,42334.0,0.0675222]
[1644618607591,0.55242864,42335.0,42321.0,0.01]
[1644618607791,0.11820778,42326.0,42321.0,0.01]
[1644618607991,0.059104,42325.0,42321.0,0.01]
[1644618608494,0.059104,42325.0,42306.0,0.119306]
[1644618608495,0.059104,42325.0,42307.0,0.060208]
[1644618608692,0.44743812,42327.0,42307.0,0.0011]
[1644618608693,0.53070211,42324.0,42307.0,0.0011]
[1644618608890,0.05911,42317.0,42307.0,0.0011]
[1644618609091,0.118219,42317.0,42307.0,0.0011]
[1644618609333,0.2021582,42314.0,42307.0,0.0011]
[1644618609732,0.0312662,42320.0,42307.0,0.060208]
[1644618609933,0.059109,42315.0,42307.0,0.0011]
[1644618610433,0.059108,42314.0,42307.0,0.0011]
[1644618610832,0.059108,42314.0,42312.0,0.0001]
[1644618611037,0.390074,42314.0,42312.0,0.0001]
[1644618611335,0.059108,42314.0,42305.0,0.00056]
[1644618611534,0.059122,42311.0,42305.0,0.00056]
[1644618612233,0.05911893,42310.0,42304.0,0.00268]
[1644618612835,0.05911893,42310.0,42305.0,0.00042041]
[1644618613089,0.059121,42309.0,42305.0,0.00042041]
[1644618613887,0.059121,42309.0,42304.0,0.00268]
[1644618614090,0.4492289,42308.0,42304.0,0.0022]
[1644618614289,0.4492289,42308.0,42304.0,0.0001]
[1644618614290,0.330966,42306.0,42304.0,0.0001]
[1644618614689,0.330966,42304.0,42298.0,0.0011]
[1644618614892,0.430966,42304.0,42298.0,0.0011]
[1644618615092,0.390106,42303.0,42296.0,0.0022]
[1644618615290,0.390106,42303.0,42294.0,0.0001]
[1644618615291,0.6231374,42303.0,42294.0,0.0001]
[1644618615491,0.5731374,42303.0,42294.0,0.0001]
[1644618615692,0.330966,42302.0,42294.0,0.0001]
[1644618615894,0.330966,42302.0,42285.0,0.0011]
[1644618615895,0.05914172,42300.0,42285.0,0.0011]
[1644618616096,0.330966,42299.0,42286.0,0.0001]
[1644618616295,0.059148,42295.0,42286.0,0.0001]
[1644618616494,0.100966,42294.0,42281.0,0.0001]
[1644618616743,0.200966,42294.0,42281.0,0.0001]
[1644618616941,0.200966,42294.0,42277.0,0.0011]
[1644618616942,0.330966,42292.0,42277.0,0.0011]
[1644618617141,0.330994,42287.0,42277.0,0.0011]
[1644618617342,0.39015,42284.0,42277.0,0.0011]
[1644618617541,0.059156,42284.0,42277.0,0.0001]
[1644618617741,0.059156,42284.0,42280.0,0.00012594]
[1644618617742,0.159156,42284.0,42280.0,0.00012594]
[1644618618142,0.059156,42284.0,42280.0,0.00012594]
[1644618618343,0.11831134,42285.0,42280.0,0.00012594]
[1644618618546,0.059156,42285.0,42280.0,0.00012594]
[1644618618742,0.059156,42285.0,42277.0,0.0001]
[1644618618944,0.059156,42285.0,42280.0,2.1077988]
[1644618619141,0.330994,42284.0,42280.0,2.1577988]
[1644618619340,0.330994,42284.0,42280.0,2.1077988]
[1644618619541,0.330994,42284.0,42280.0,2.1577988]
[1644618619741,0.32406036,42284.0,42280.0,2.1077988]
[1644618619942,0.059156,42285.0,42280.0,0.230177]
[1644618620143,0.05,42284.0,42280.0,0.00041961]
[1644618620342,0.059156,42285.0,42281.0,0.237105]
[1644618620343,0.109156,42285.0,42281.0,0.237105]
[1644618620788,0.104156,42285.0,42281.0,0.28667459]
[1644618620983,0.054156,42285.0,42282.0,0.237098]
[1644618621183,0.054156,42285.0,42279.0,0.15]
[1644618621386,0.054156,42285.0,42281.0,0.0004196]
[1644618621587,0.054156,42285.0,42282.0,0.237099]
[1644618621785,0.054156,42285.0,42281.0,0.0504196]
[1644618621984,0.054156,42285.0,42282.0,0.237098]
[1644618622185,0.054156,42285.0,42281.0,0.1004196]
[1644618622386,0.054156,42285.0,42281.0,0.05]
[1644618622585,0.054156,42285.0,42282.0,0.237098]
[1644618622986,0.054156,42285.0,42282.0,0.287098]
[1644618623286,0.054156,42285.0,42284.0,0.05]
[1644618623685,0.054156,42285.0,42279.0,0.00041959]
[1644618623885,0.054156,42285.0,42277.0,0.09295366]
[1644618624085,0.054156,42285.0,42279.0,0.237117]
[1644618625244,0.054156,42285.0,42279.0,0.287117]
[1644618625443,0.054156,42285.0,42281.0,0.237105]
[1644618626346,0.05,42287.0,42281.0,0.237105]
[1644618626543,0.05,42287.0,42282.0,0.04674112]
[1644618626743,0.059137,42288.0,42283.0,0.28709]
[1644618626947,0.059137,42288.0,42284.0,0.237083]
[1644618628186,0.059137,42288.0,42285.0,0.237077]
[1644618628987,0.059137,42288.0,42287.0,0.237064]
[1644618629388,0.059137,42288.0,42287.0,2.70155223]
[1644618629389,0.390137,42288.0,42287.0,2.70155223]
[1644618629890,0.109137,42288.0,42287.0,2.70155223]
[1644618630089,0.390137,42288.0,42287.0,2.70155223]
[1644618630291,0.38291161,42288.0,42287.0,2.70155223]
[1644618630490,0.05191161,42288.0,42285.0,0.237075]
[1644618630690,0.05191161,42288.0,42285.0,0.28628234]
[1644618630889,0.10191161,42288.0,42287.0,0.237064]
[1644618631090,0.05191161,42288.0,42286.0,0.237069]
[1644618634145,0.05191161,42288.0,42284.0,0.23]
[1644618634146,0.05191161,42288.0,42287.0,0.237063]
[1644618637290,0.05191161,42288.0,42284.0,0.116037]
[1644618637486,0.05191161,42288.0,42284.0,0.07996801]
[1644618640437,0.05191161,42288.0,42284.0,0.11448061]
[1644618640638,0.04592927,42288.0,42285.0,0.2]
[1644618640838,0.04592927,42288.0,42286.0,0.04846946]
[1644618641038,0.04592927,42288.0,42286.0,0.0332882]
[1644618641838,0.04592927,42288.0,42285.0,0.2]
[1644618642994,0.04592927,42288.0,42285.0,0.23859252]
[1644618643190,0.04592927,42288.0,42285.0,0.2]
[1644618643388,0.04592927,42288.0,42285.0,0.23450359]
[1644618643590,0.04592927,42288.0,42285.0,0.2]
[1644618643790,0.05,42291.0,42287.0,0.2]
[1644618643990,0.3440271,42299.0,42290.0,0.2]
[1644618644191,0.40314963,42306.0,42298.0,0.2]
[1644618644392,0.00170455,42295.0,42292.0,0.08948044]
[1644618644591,0.00170455,42295.0,42293.0,0.03561522]
[1644618644790,0.33269655,42295.0,42294.0,2.28122735]
[1644618645192,0.330992,42295.0,42294.0,2.28122735]
[1644618645392,0.380992,42295.0,42294.0,2.28122735]
[1644618645992,0.05,42295.0,42294.0,2.28122735]
[1644618646191,0.380992,42295.0,42294.0,2.28122735]
[1644618647038,0.00041708,42297.0,42294.0,2.22210435]
[1644618647039,0.330992,42296.0,42294.0,2.22210435]
[1644618647239,0.330992,42295.0,42294.0,2.22210435]
[1644618647941,0.380992,42296.0,42294.0,2.42210435]
[1644618648141,0.05,42296.0,42294.0,2.42210435]
[1644618648341,0.00041708,42297.0,42294.0,2.28122029]
[1644618648540,0.330992,42296.0,42294.0,2.34033729]
[1644618648741,0.380992,42296.0,42294.0,2.34033729]
[1644618648942,0.05,42296.0,42294.0,2.34034035]
[1644618649147,0.330992,42296.0,42294.0,2.34034035]
[1644618649341,0.330992,42297.0,42294.0,2.34034035]
[1644618649543,0.380992,42297.0,42294.0,2.34034035]
[1644618649742,0.00041708,42298.0,42294.0,2.34034035]
[1644618649942,0.330992,42297.0,42294.0,2.28122335]
[1644618650142,0.05,42297.0,42294.0,2.51122335]
[1644618650348,0.0004,42298.0,42295.0,0.259121]
[1644618650605,0.0004,42298.0,42296.0,0.168214]
[1644618651010,0.118223,42308.0,42296.0,0.168214]
[1644618651011,0.118223,42308.0,42297.0,0.65]
[1644618651212,0.3440271,42317.0,42304.0,0.20180336]
[1644618651405,0.03538088,42326.0,42310.0,0.2]
[1644618651406,0.1987884,42326.0,42310.0,0.2]
[1644618651611,0.34783545,42333.0,42313.0,0.118184]
[1644618651612,0.177311,42324.0,42313.0,0.118184]
[1644618651805,0.177311,42324.0,42314.0,0.2]
[1644618652006,0.059091,42321.0,42313.0,0.05]
[1644618652205,0.118175,42327.0,42314.0,0.05908949]
[1644618652405,0.01,42329.0,42318.0,0.059091]
[1644618652606,0.01,42329.0,42319.0,0.2]
[1644618653006,0.01,42329.0,42318.0,0.059091]
[1644618653208,0.01,42329.0,42318.0,0.058091]
[1644618653406,0.059086,42328.0,42318.0,0.058091]
[1644618653607,0.01,42329.0,42321.0,0.059082]
[1644618653808,0.01,42329.0,42327.0,0.2]
[1644618654005,0.01,42329.0,42321.0,0.2]
[1644618654237,0.01,42329.0,42324.0,0.11815]
[1644618654440,0.01,42329.0,42324.0,0.16815]
[1644618654837,0.0001,42329.0,42324.0,0.16815]
[1644618655038,0.0001,42329.0,42328.0,0.2]
[1644618655039,0.00050376,42329.0,42328.0,0.2]
[1644618655238,0.00161481,42335.0,42328.0,0.2]
[1644618655239,0.00161481,42335.0,42328.0,0.259075]
[1644618655440,0.00161481,42335.0,42333.0,0.2]
[1644618655645,0.00161481,42335.0,42328.0,0.109075]
[1644618655840,0.11485581,42342.0,42330.0,0.05]
[1644618656240,0.11485581,42342.0,42330.0,0.118132]
[1644618656741,0.1987884,42348.0,42330.0,0.16067757]
[1644618657241,0.35111252,42347.0,42330.0,0.16067757]
[1644618657440,0.35111252,42347.0,42336.0,0.03888931]
[1644618657441,0.059067,42343.0,42336.0,0.03888931]
[1644618657641,0.059067,42343.0,42337.0,0.03532185]
[1644618657842,0.01540171,42335.0,42333.0,0.059064]
[1644618658096,1.71e-06,42335.0,42334.0,0.03942565]
[1644618659697,1.71e-06,42335.0,42334.0,0.23942565]
[1644618659897,1.71e-06,42335.0,42334.0,0.2]
[1644618660097,1.71e-06,42335.0,42334.0,0.43712493]
[1644618660295,1.71e-06,42335.0,42334.0,0.53712493]
[1644618660697,1.71e-06,42335.0,42334.0,0.54290976]
[1644618661297,1.71e-06,42335.0,42334.0,0.53712493]
[1644618661741,0.00443027,42349.0,42334.0,0.56072493]
[1644618661943,0.00443027,42349.0,42348.0,0.2]
[1644618662345,0.00443027,42349.0,42348.0,0.25]
[1644618663553,0.00443027,42349.0,42348.0,0.359042]
[1644618663948,0.00443027,42349.0,42348.0,0.409042]
[1644618664547,0.5297,42355.0,42348.0,0.551042]
[1644618664749,0.00027212,42356.0,42354.0,0.95902222]
[1644618664947,0.00086144,42365.0,42356.0,0.2]
[1644618665147,0.00086144,42365.0,42363.0,0.2]
[1644618665501,0.00486144,42369.0,42357.0,0.05]
[1644618665694,0.00486144,42369.0,42367.0,0.2]
[1644618665894,0.00486144,42369.0,42368.0,0.05]
[1644618667094,6.144e-05,42369.0,42368.0,0.05]
[1644618667297,0.5297,42374.0,42369.0,6.714e-05]
[1644618667498,0.5297,42374.0,42373.0,0.2]
[1644618668702,0.5297,42374.0,42370.0,0.25]
[1644618668899,0.5297,42374.0,42371.0,0.33328452]
[1644618669101,0.5297,42374.0,42373.0,0.2]
[1644618670251,0.5297,42374.0,42373.0,0.25900185]
[1644618670450,0.05901,42381.0,42373.0,0.2]
[1644618670651,0.05901,42381.0,42373.0,0.1]
[1644618670853,0.05901,42381.0,42374.0,0.05]
[1644618670854,0.00042439,42376.0,42374.0,0.05]
[1644618671051,0.00042439,42376.0,42375.0,0.2]
[1644618671258,0.00042439,42376.0,42375.0,0.25]
[1644618671455,0.00042439,42376.0,42375.0,0.65]
[1644618671851,0.02002413,42388.0,42375.0,0.65]
[1644618671852,0.02002413,42388.0,42384.0,0.2]
[1644618672051,0.02002413,42388.0,42377.0,0.059003]
[1644618672252,0.02002413,42388.0,42386.0,0.05]
[1644618672651,0.02002413,42388.0,42386.0,0.2]
[1644618672853,0.02002413,42388.0,42386.0,1.89305995]
[1644618673100,0.02002413,42388.0,42387.0,0.05]
[1644618674499,0.02002413,42388.0,42386.0,0.15]
[1644618674697,0.02002413,42388.0,42386.0,0.25]
[1644618674997,0.02002413,42388.0,42386.0,0.2]
[1644618675198,0.02002413,42388.0,42387.0,0.05]
[1644618675997,0.02002413,42388.0,42387.0,0.03994414]
[1644618676840,0.02002413,42388.0,42383.0,0.33515866]
[1644618677140,0.02002413,42388.0,42386.0,0.2]
[1644618677343,0.02002413,42388.0,42386.0,0.3]
[1644618677741,0.02002413,42388.0,42386.0,0.26410061]
[1644618678141,0.02002413,42388.0,42387.0,0.05]
[1644618678339,0.02002413,42388.0,42386.0,0.15]
[1644618678743,0.02002413,42388.0,42387.0,0.458986]
[1644618678944,0.02002413,42388.0,42387.0,0.558986]
[1644618679141,0.0001,42402.0,42397.0,0.16410061]
[1644618679543,0.0001,42402.0,42397.0,0.21410061]
[1644618679942,0.0001,42402.0,42398.0,0.0583138]
[1644618680144,0.0001,42402.0,42397.0,0.21410061]
[1644618680344,0.059079,42405.0,42399.0,0.04000204]
[1644618680601,0.059079,42405.0,42400.0,0.04217705]
[1644618680602,0.00040976,42402.0,42400.0,0.04217705]
[1644618680800,0.00040976,42402.0,42401.0,0.05]
[1644618681202,0.058976,42405.0,42401.0,0.05]
[1644618681400,0.0001,42404.0,42403.0,0.16410061]
[1644618681604,0.0001,42404.0,42400.0,0.16410061]
[1644618681798,0.0001,42404.0,42398.0,0.1]
[1644618681799,0.0001,42404.0,42403.0,0.16410061]
[1644618681998,0.00932048,42409.0,42401.0,0.05]
[1644618682203,0.00932048,42409.0,42400.0,0.058968]
[1644618682401,0.00932048,42409.0,42396.0,0.11793297]
[1644618682602,0.00932048,42409.0,42404.0,0.058969]
[1644618682800,0.00432048,42409.0,42404.0,0.058969]
[1644618683701,0.00393221,42409.0,42407.0,0.16410061]
[1644618683901,0.01790769,42406.0,42404.0,0.00013086]
[1644618684104,0.01790769,42406.0,42405.0,0.16410061]
[1644618684346,0.01790769,42406.0,42404.0,0.00013086]
[1644618684546,0.01790769,42406.0,42404.0,0.16423147]
[1644618684747,0.01790769,42406.0,42401.0,0.04978069]
[1644618684948,0.07688369,42406.0,42401.0,0.0001]
[1644618685147,0.07688369,42406.0,42403.0,0.00042434]
[1644618685647,0.0001,42405.0,42403.0,0.00042434]
[1644618686146,0.0001,42405.0,42401.0,0.0001]
[1644618686346,0.00037212,42405.0,42401.0,0.0001]
[1644618686546,0.0001,42405.0,42401.0,0.0001]
[1644618686749,0.00037212,42405.0,42401.0,0.0001]
[1644618686946,0.0001,42405.0,42401.0,0.0001]
[1644618687146,0.05935012,42405.0,42401.0,0.0001]
[1644618687347,0.0001,42404.0,42401.0,0.0001]
[1644618687547,0.059079,42404.0,42401.0,0.0001]
[1644618687747,0.0001,42403.0,42401.0,0.0001]
[1644618688795,0.0501,42403.0,42401.0,0.0001]
[1644618688995,0.0001,42402.0,42401.0,0.0001]
[1644618689397,0.0001,42402.0,42400.0,9.568e-05]
[1644618689398,0.0001,42402.0,42400.0,9.47e-05]
[1644618689598,0.059078,42402.0,42400.0,9.47e-05]
[1644618689799,0.0001,42401.0,42400.0,9.47e-05]
[1644618691100,0.0001,42401.0,42400.0,0.2300947]
[1644618691298,0.0001,42401.0,42400.0,0.2800947]
[1644618694571,0.0001,42401.0,42400.0,0.28036144]
[1644618695697,0.0001,42401.0,42400.0,0.25536144]
[1644618696295,0.0001,42401.0,42400.0,0.41946205]
[1644618696498,0.0001,42401.0,42400.0,0.51946205]
[1644618696695,0.0001,42401.0,42400.0,0.35536144]
[1644618697297,0.0001,42401.0,42389.0,0.05552336]
[1644618697597,0.05898,42398.0,42389.0,0.05552336]
[1644618697797,0.05898,42398.0,42392.0,0.16410061]
[1644618697996,0.0001,42397.0,42392.0,0.16410061]
[1644618698197,0.00037212,42397.0,42389.0,0.05552336]
[1644618698398,0.0001,42397.0,42395.0,0.058983]
[1644618698598,0.00037212,42397.0,42395.0,0.058983]
[1644618698799,0.00037212,42399.0,42395.0,0.058983]
[1644618699000,0.0001,42399.0,42395.0,0.058983]
[1644618699252,0.00037212,42399.0,42395.0,0.058983]
[1644618699454,0.0001,42399.0,42395.0,0.058983]
[1644618699655,0.00037212,42399.0,42395.0,0.058983]
[1644618699852,0.058983,42397.0,42395.0,0.058983]
[1644618700053,0.00037212,42399.0,42396.0,2.39052059]
[1644618700054,0.058982,42398.0,42396.0,2.39052059]
[1644618700655,0.058982,42398.0,42396.0,2.54052059]
[1644618700856,0.058982,42398.0,42396.0,0.15]
[1644618701455,0.058982,42398.0,42396.0,0.38]
[1644618702055,0.058982,42398.0,42396.0,0.28]
[1644618702456,0.41835036,42395.0,42394.0,0.117957]
[1644618702657,0.41835036,42395.0,42392.0,0.16410061]
[1644618702856,0.46835036,42395.0,42392.0,0.16410061]
[1644618703901,0.52734136,42395.0,42393.0,2.20908597]
[1644618704101,0.52734136,42395.0,42392.0,0.16410061]
[1644618704301,0.52734136,42395.0,42393.0,0.058988]
[1644618704904,0.58633136,42395.0,42393.0,0.058988]
[1644618705304,0.0001,42394.0,42393.0,0.058988]
[1644618708148,0.0001,42394.0,42393.0,0.05807953]
[1644618708346,0.0001,42394.0,42393.0,0.04106969]
[1644618709447,0.0001,42394.0,42393.0,0.04138183]
[1644618711999,0.0001,42394.0,42393.0,0.00031214]
[1644618712799,0.0001,42394.0,42393.0,0.10031214]
[1644618713000,0.0001,42394.0,42393.0,0.15930114]
[1644618713601,0.32421658,42394.0,42393.0,0.10031214]
[1644618713801,0.19783217,42394.0,42393.0,0.09962176]
[1644618714251,0.51857677,42394.0,42393.0,0.09992643]
[1644618714650,0.19783217,42394.0,42393.0,0.09992643]
[1644618715251,0.19783217,42394.0,42393.0,0.14306054]
[1644618715648,0.19783217,42394.0,42393.0,0.09992643]
[1644618716050,0.0001,42394.0,42393.0,0.09992643]
[1644618716249,0.56143136,42395.0,42393.0,0.15891743]
[1644618716651,0.80859658,42395.0,42393.0,0.15891743]
[1644618717252,0.19909446,42394.0,42393.0,0.15891743]
[1644618718104,0.19909399,42394.0,42393.0,0.15891743]
[1644618718303,0.19909779,42394.0,42393.0,0.15891743]
[1644618719205,0.19909779,42394.0,42393.0,0.15876532]
[1644618719406,0.05,42394.0,42393.0,0.15876532]
[1644618719806,0.47734036,42395.0,42393.0,0.15876532]
[1644618720007,0.67647326,42395.0,42393.0,0.15876532]
[1644618720706,0.1991329,42394.0,42393.0,0.15876532]
[1644618720906,0.19913219,42394.0,42393.0,0.15876532]
[1644618721509,0.52734036,42395.0,42393.0,0.15876532]
[1644618721510,0.77450558,42395.0,42393.0,0.15876532]
[1644618721750,0.0001,42394.0,42393.0,0.15876532]
[1644618722650,0.26183325,42392.0,42391.0,0.00037068]
[1644618722851,0.31183325,42392.0,42391.0,0.00037068]
[1644618723054,0.31193325,42392.0,42391.0,0.00037068]
[1644618723552,0.31193325,42392.0,42389.0,0.117983]
[1644618723751,0.058992,42391.0,42389.0,0.117983]
[1644618723952,0.059092,42391.0,42389.0,0.117983]
[1644618724154,0.0001,42390.0,42389.0,0.217983]
[1644618724953,0.0001,42390.0,42389.0,0.38208361]
[1644618725152,0.0001,42390.0,42389.0,0.217983]
[1644618725352,0.0001,42390.0,42389.0,0.317983]
[1644618725902,0.0001,42390.0,42389.0,0.117983]
[1644618727402,0.058992,42389.0,42382.0,0.43929913]
[1644618727601,0.0001,42388.0,42380.0,0.49266438]
[1644618727803,0.0001,42388.0,42382.0,0.05899251]
[1644618728001,0.0001,42388.0,42383.0,0.058992]
[1644618728202,0.0501,42390.0,42383.0,0.058992]
[1644618728403,0.0001,42390.0,42383.0,0.058992]
[1644618728601,0.0001,42391.0,42383.0,0.058992]
[1644618728803,0.058994,42387.0,42383.0,0.058992]
[1644618729003,0.058994,42387.0,42384.0,0.03458696]
[1644618729254,0.0001,42386.0,42385.0,0.058994]
[1644618729856,2.917e-05,42386.0,42385.0,0.058994]